{"text_format":"3","workbook":"xlsx","n_sheets":2,"sheets":["Început","Planificator buget de sărbători"],"not_rendered":{"defined_names":1},"read":"whole","date_system":"1900"}

{"sheet":"Început","index":0,"n_rows":4,"n_cols":2,"rows_kept":4}
[null,"Cum să utilizați acest șablon"]
[null,"Urmăriți-vă cheltuielile cu acest planificator de buget de sărbători."]
[null,"Pentru început, introduceți bugetul și cheltuielile reale în fiecare tabel de categorii."]
[null,"Bugetul de sărbători, Suma reală totală cheltuităși Diferența sunt calculate automat pentru dvs."]

{"sheet":"Planificator buget de sărbători","index":1,"n_rows":36,"n_cols":14,"rows_kept":36,"merged":[[0,2,5,7],[2,10,2,11],[8,2,8,5],[8,10,8,13],[18,2,18,5],[18,10,18,13],[29,2,29,5],[29,10,29,13]]}
[null,null,"Planificator buget de sărbători planificator"]
[]
[{"$nulls":10},"BUGET DE SĂRBĂTORI",null,null,{"$f":"SUM(Cadouri[Buget],Ambalare[Buget],(Călătorii[Buget],(Mese[Buget],(Divertisment[Buget],Diverse[Buget]))))","v":{"v":750,"d":"750.00 lei"}}]
[{"$nulls":10},"SUMĂ CHELTUITĂ EFECTIV",null,null,{"$f":"SUM((Cadouri[Real],(Ambalare[Real],(Călătorii[Real],(Mese[Real],(Divertisment[Real],(Diverse[Real])))))))","v":{"v":820,"d":"820.00 lei"}}]
[]
[{"$nulls":10},"DIFERENȚA (peste/sub buget)",null,null,{"$f":"SUM(N3-N4)","v":{"v":-70,"d":"-70.00 lei"}}]
[]
[]
[null,null,"CADOURI",{"$nulls":7},"MESE DE SĂRBĂTORI"]
[null,null,"Articol","Buget","Real","Diferență",{"$nulls":4},"Articol","Buget","Real","Diferență"]
[null,null,"Familie",{"v":500,"d":"500.00 lei"},{"v":495,"d":"495.00 lei"},{"$f":"Cadouri[[#This Row],[Buget]]-Cadouri[[#This Row],[Real]]","v":{"v":5,"d":"5.00 lei"}},{"$nulls":4},"Articole de băcănie",null,null,{"$f":"Mese[[#This Row],[Buget]]-Mese[[#This Row],[Real]]","v":{"v":0,"d":"0.00 lei"}}]
[null,null,"Prieteni",{"v":250,"d":"250.00 lei"},{"v":325,"d":"325.00 lei"},{"$f":"Cadouri[[#This Row],[Buget]]-Cadouri[[#This Row],[Real]]","v":{"v":-75,"d":"-75.00 lei"}},{"$nulls":4},"Băuturi alcoolice",null,null,{"$f":"Mese[[#This Row],[Buget]]-Mese[[#This Row],[Real]]","v":{"v":0,"d":"0.00 lei"}}]
[null,null,"Colegi",null,null,{"$f":"Cadouri[[#This Row],[Buget]]-Cadouri[[#This Row],[Real]]","v":{"v":0,"d":"0.00 lei"}},{"$nulls":4},"Decorațiuni",null,null,{"$f":"Mese[[#This Row],[Buget]]-Mese[[#This Row],[Real]]","v":{"v":0,"d":"0.00 lei"}}]
[null,null,"Profesori, bone etc.",null,null,{"$f":"Cadouri[[#This Row],[Buget]]-Cadouri[[#This Row],[Real]]","v":{"v":0,"d":"0.00 lei"}},{"$nulls":4},"Altele (fila din ultima coloană a acestui rând pentru a adăuga un rând)",null,null,{"$f":"Mese[[#This Row],[Buget]]-Mese[[#This Row],[Real]]","v":{"v":0,"d":"0.00 lei"}}]
[null,null,"Donații caritabile",null,null,{"$f":"Cadouri[[#This Row],[Buget]]-Cadouri[[#This Row],[Real]]","v":{"v":0,"d":"0.00 lei"}},{"$nulls":7},{"$f":"Mese[[#This Row],[Buget]]-Mese[[#This Row],[Real]]","v":{"v":0,"d":"0.00 lei"}}]
[null,null,"Altele (fila din ultima coloană a acestui rând pentru a adăuga un rând)",null,null,{"$f":"Cadouri[[#This Row],[Buget]]-Cadouri[[#This Row],[Real]]","v":{"v":0,"d":"0.00 lei"}}]
[null,null,"Total",{"$f":"SUBTOTAL(109,Cadouri[Buget])","v":{"v":750,"d":"750.00 lei"}},{"$f":"SUBTOTAL(109,Cadouri[Real])","v":{"v":820,"d":"820.00 lei"}},{"$f":"SUBTOTAL(109,Cadouri[Diferență])","v":{"v":-70,"d":"-70.00 lei"}},{"$nulls":4},"Total",{"$f":"SUBTOTAL(109,Mese[Buget])","v":{"v":0,"d":"0.00 lei"}},{"$f":"SUBTOTAL(109,Mese[Real])","v":{"v":0,"d":"0.00 lei"}},{"$f":"SUBTOTAL(109,Mese[Diferență])","v":{"v":0,"d":"0.00 lei"}}]
[]
[null,null,"AMBALARE",{"$nulls":7},"DIVERTISMENT"]
[null,null,"Articol","Buget","Real","Diferență",{"$nulls":4},"Articol","Buget","Real","Diferență"]
[null,null,"Ambalaj cadouri",null,null,{"$f":"Ambalare[[#This Row],[Buget]]-Ambalare[[#This Row],[Real]]","v":{"v":0,"d":"0.00 lei"}},{"$nulls":4},"Ajutor la petrecere (barman, furnizor de alimente, persoane pentru curățenie etc.)",null,null,{"$f":"Divertisment[[#This Row],[Buget]]-Divertisment[[#This Row],[Real]]","v":{"v":0,"d":"0.00 lei"}}]
[null,null,"Etichete",null,null,{"$f":"Ambalare[[#This Row],[Buget]]-Ambalare[[#This Row],[Real]]","v":{"v":0,"d":"0.00 lei"}},{"$nulls":4},"Decorațiuni",null,null,{"$f":"Divertisment[[#This Row],[Buget]]-Divertisment[[#This Row],[Real]]","v":{"v":0,"d":"0.00 lei"}}]
[null,null,"Consumabile (panglică, bandă etc.)",null,null,{"$f":"Ambalare[[#This Row],[Buget]]-Ambalare[[#This Row],[Real]]","v":{"v":0,"d":"0.00 lei"}},{"$nulls":4},"Alimente și băuturi",null,null,{"$f":"Divertisment[[#This Row],[Buget]]-Divertisment[[#This Row],[Real]]","v":{"v":0,"d":"0.00 lei"}}]
[null,null,"Cutii",null,null,{"$f":"Ambalare[[#This Row],[Buget]]-Ambalare[[#This Row],[Real]]","v":{"v":0,"d":"0.00 lei"}},{"$nulls":4},"Îmbrăcăminte",null,null,{"$f":"Divertisment[[#This Row],[Buget]]-Divertisment[[#This Row],[Real]]","v":{"v":0,"d":"0.00 lei"}}]
[null,null,"Cheltuieli cu poșta",null,null,{"$f":"Ambalare[[#This Row],[Buget]]-Ambalare[[#This Row],[Real]]","v":{"v":0,"d":"0.00 lei"}},{"$nulls":4},"Bilete",null,null,{"$f":"Divertisment[[#This Row],[Buget]]-Divertisment[[#This Row],[Real]]","v":{"v":0,"d":"0.00 lei"}}]
[null,null,"Altele (fila din ultima coloană a acestui rând pentru a adăuga un rând)",null,null,{"$f":"Ambalare[[#This Row],[Buget]]-Ambalare[[#This Row],[Real]]","v":{"v":0,"d":"0.00 lei"}},{"$nulls":4},"Cine în oraș",null,null,{"$f":"Divertisment[[#This Row],[Buget]]-Divertisment[[#This Row],[Real]]","v":{"v":0,"d":"0.00 lei"}}]
[{"$nulls":10},"Altele (fila din ultima coloană a acestui rând pentru a adăuga un rând)",null,null,{"$f":"Divertisment[[#This Row],[Buget]]-Divertisment[[#This Row],[Real]]","v":{"v":0,"d":"0.00 lei"}}]
[null,null,"Total",{"$f":"SUBTOTAL(109,Ambalare[Buget])","v":{"v":0,"d":"0.00 lei"}},{"$f":"SUBTOTAL(109,Ambalare[Real])","v":{"v":0,"d":"0.00 lei"}},{"$f":"SUBTOTAL(109,Ambalare[Diferență])","v":{"v":0,"d":"0.00 lei"}},{"$nulls":4},"Total",{"$f":"SUBTOTAL(109,Divertisment[Buget])","v":{"v":0,"d":"0.00 lei"}},{"$f":"SUBTOTAL(109,Divertisment[Real])","v":{"v":0,"d":"0.00 lei"}},{"$f":"SUBTOTAL(109,Divertisment[Diferență])","v":{"v":0,"d":"0.00 lei"}}]
[]
[null,null,"CĂLĂTORII",{"$nulls":7},"DIVERSE"]
[null,null,"Articol","Buget","Real","Diferență",{"$nulls":4},"Articol","Buget","Real","Diferență"]
[null,null,"Bilete de avion",null,null,{"$f":"Călătorii[[#This Row],[Buget]]-Călătorii[[#This Row],[Real]]","v":{"v":0,"d":"0.00 lei"}},{"$nulls":4},"Fotografii de vacanță",null,null,{"$f":"Diverse[[#This Row],[Buget]]-Diverse[[#This Row],[Real]]","v":{"v":0,"d":"0.00 lei"}}]
[null,null,"Cazare",null,null,{"$f":"Călătorii[[#This Row],[Buget]]-Călătorii[[#This Row],[Real]]","v":{"v":0,"d":"0.00 lei"}},{"$nulls":4},"Gaze ",null,null,{"$f":"Diverse[[#This Row],[Buget]]-Diverse[[#This Row],[Real]]","v":{"v":0,"d":"0.00 lei"}}]
[null,null,"Transport",null,null,{"$f":"Călătorii[[#This Row],[Buget]]-Călătorii[[#This Row],[Real]]","v":{"v":0,"d":"0.00 lei"}},{"$nulls":4},"Altele (fila din ultima coloană a acestui rând pentru a adăuga un rând)",null,null,{"$f":"Diverse[[#This Row],[Buget]]-Diverse[[#This Row],[Real]]","v":{"v":0,"d":"0.00 lei"}}]
[null,null,"Altele (fila din ultima coloană a acestui rând pentru a adăuga un rând)",null,null,{"$f":"Călătorii[[#This Row],[Buget]]-Călătorii[[#This Row],[Real]]","v":{"v":0,"d":"0.00 lei"}}]
[null,null,"Total",{"$f":"SUBTOTAL(109,Călătorii[Buget])","v":{"v":0,"d":"0.00 lei"}},{"$f":"SUBTOTAL(109,Călătorii[Real])","v":{"v":0,"d":"0.00 lei"}},{"$f":"SUBTOTAL(109,Călătorii[Diferență])","v":{"v":0,"d":"0.00 lei"}},{"$nulls":4},"Total",{"$f":"SUBTOTAL(109,Diverse[Buget])","v":{"v":0,"d":"0.00 lei"}},{"$f":"SUBTOTAL(109,Diverse[Real])","v":{"v":0,"d":"0.00 lei"}},{"$f":"SUBTOTAL(109,Diverse[Diferență])","v":{"v":0,"d":"0.00 lei"}}]